Cogmind - Beta 15 @@@ ROGUE MODE // 2025.07.21 @ 18:45:55 Player: P9H Result: Destroyed by Y-54 Guardian with Flak Gun Performance ------------- Evolutions (3) 1500 Regions Visited (5) 1000 Robots Destroyed (57) 285 Value Destroyed (2084) 2084 Prototype IDs (4) 80 Alien Tech Used (0) 0 Bonus (0) 0 TOTAL SCORE: 4949 Bonus ------- None Cogmind --------- Core Integrity 0/700 Matter 15/300 Energy 133/150 System Corruption 7% Temperature Cool (18) Movement Core (250) Ox4 Location -7/Storage Parts ------- > --- POWER (2) -------- Micro Nuclear Core > --- PROPULSION (2) --- (None) > --- UTILITY (7) ------ Visual Processing Unit > --- WEAPON (2) ------- Rocket Array > --- INVENTORY (5) ---- Nuclear Core Heavy Armor Plating Flak Cannon Rocket Array Peak State ------------ > --- POWER ------------ Nuclear Core Enhanced Nuclear Core > --- PROPULSION ------- Wheel Wheel > --- UTILITY ---------- Improved Heat Sink High-capacity Storage Unit Visual Processing Unit Matter Filter Light Armor Plating Hardened Light Armor Plating Hardened Light Armor Plating > --- WEAPON ----------- Rocket Array Rocket Array > --- INVENTORY -------- Nuclear Core Micro Nuclear Core Micro Nuclear Core Improved Heat Sink Improved Heat Sink Improved Heat Sink Coolant Injector Improved Signal Interpreter Improved Signal Interpreter Energy Filter Energy Filter Heavy Armor Plating Improved Medium Armor Plating Gatling Laser Improved EM Pulse Cannon Flak Cannon Gauss Cannon Rocket Array Rocket Array [Rating: 42] Favorites ----------- Power Enhanced Nuclear Core Engine Light Ion Engine Power Core Enhanced Nuclear Core Propulsion Wheel Wheel Wheel Utility High-capacity Storage Unit Device Improved Heat Sink Storage High-capacity Storage Unit Processor Visual Processing Unit Protection Hardened Light Armor Plating Weapon Spread Laser Energy Gun Spread Laser Energy Cannon EM Pulse Cannon Ballistic Gun Assault Rifle Ballistic Cannon Gauss Cannon Launcher Rocket Array Build | -11 -10 -9 -8 -7 -7 ------- Run | Yrd Mat Mat Mat Fac Sto Slots Evolved 6 | . . 2 2 2 . Power 1 | . . . . 1 . Propulsion . | . . . . . . Utility 5 | . . 2 2 1 . Weapon . | . . . . . . Parts Attached 60 | 3 6 13 17 14 7 Power 9 | . 1 2 3 2 1 Engine 4 | . 1 2 1 . . Core 5 | . . . 2 2 1 Reactor . | . . . . . . Propulsion 9 | 1 1 1 4 2 . Treads . | . . . . . . Leg . | . . . . . . Wheel 9 | 1 1 1 4 2 . Hover . | . . . . . . Flight . | . . . . . . Utility 19 | 1 3 5 5 5 . Device 7 | . . 3 2 2 . Storage 3 | 1 2 . . . . Processor 2 | . 1 1 . . . Hackware . | . . . . . . Protection 7 | . . 1 3 3 . Artifact . | . . . . . . Weapon 23 | 1 1 5 5 5 6 Energy Gun 8 | . . 4 2 2 . Energy Cannon 1 | . . . 1 . . Ballistic Gun 4 | 1 1 1 1 . . Ballistic Cannon 2 | . . . . 2 . Launcher 8 | . . . 1 1 6 Special Weapon . | . . . . . . Impact Weapon . | . . . . . . Slashing Weapon . | . . . . . . Piercing Weapon . | . . . . . . Special Melee Weapon . | . . . . . . Unidentified Prototypes 4 | . . . 2 1 1 Parts Lost 36 | . . 6 11 7 12 Power 3 | . . 1 . . 2 Propulsion 9 | . . 1 3 3 2 Utility 12 | . . 2 3 2 5 Weapon 12 | . . 2 5 2 3 Highest Loss Streak 10 | . . 4 6 3 10 To Critical Strikes . | . . . . . . Average Backups 17 | 3 8 18 19 19 18 Power 2 | 1 3 3 2 3 3 Propulsion 1 | . . 4 3 . . Utility 7 | . 2 3 6 10 10 Weapon 5 | 1 2 7 6 5 5 Tool/Special . | . . . . . . Unused Backups 25 | . . . 2 8 15 Power 6 | . . . 2 2 2 Propulsion . | . . . . . . Utility 13 | . . . . 4 9 Weapon 6 | . . . . 2 4 Tool/Special . | . . . . . . Average Slot Usage (%) 94 | . 96 90 97 95 87 Engine 5 | . 13 10 6 . . Core 6 | . . . 2 14 14 Wheel 16 | . 27 20 17 11 13 Device 13 | . . 15 15 16 9 Storage 9 | . 14 11 9 7 6 Processor 8 | . 13 4 9 7 7 Protection 15 | . . 6 18 20 19 Energy Gun 9 | . . 13 14 8 . Energy Cannon 1 | . . . 2 . . Ballistic Gun 4 | . 27 7 . . . Ballistic Cannon 1 | . . . . 4 6 Launcher 1 | . . . . . 7 Peak Build Rating 42 | 3 9 14 28 41 42 Average Rating 23 | 2 7 11 20 36 36 On Entrance 14 | . 3 9 14 25 38 Naked Turns . | . . . . . . Heaviest Build 86 | 7 48 54 62 85 86 Greatest Support 26 | 16 26 26 20 20 20 Greatest Overweight (x) 25 | . 1 4 5 25 18 Average Overweight (x) 2 | . . 1 2 4 4 Largest Inventory Capacity 20 | 8 20 20 20 20 20 Average Capacity 19 | 7 17 20 20 20 19 Most Carried 20 | 5 19 20 20 20 20 Average Carried 17 | 3 8 18 19 19 19 Final Capacity 20 | 8 20 20 20 20 5 Final Carried 20 | 5 19 20 20 19 5 Class Distribution -------------------- 88% | Mutant 11% | Scavenger-Mutant Dominant Class ---------------- Mutant | -10/Materials Mutant | -9/Materials Mutant | -8/Materials Mutant | -7/Factory Mutant | -7/Storage Resources | -11 -10 -9 -8 -7 -7 ----------- Run | Yrd Mat Mat Mat Fac Sto Matter Collected 1091 | 186 54 219 225 407 . Remotely . | . . . . . . Salvage Created 1771 | . 54 313 613 585 206 Parts 86 | . 7 16 34 25 4 Haulers Intercepted 1 | . . . . . 1 Recyclers Shooed . | . . . . . . Parts Field Recycled . | . . . . . . Retrieved Matter . | . . . . . . Parts Self-Destructed . | . . . . . . Prevented . | . . . . . . Kills | -11 -10 -9 -8 -7 -7 ------- Run | Yrd Mat Mat Mat Fac Sto Combat Hostiles Destroyed 49 | . 3 6 20 12 8 Guns 24 | . 3 6 8 7 . Cannons 5 | . . . 2 3 . AOE 20 | . . . 10 2 8 Classes Destroyed 15 | . 1 3 4 6 1 Worker 2 | . . . . 2 . Builder 1 | . . . 1 . . Hauler 1 | . . . . . 1 Recycler 1 | . . . . 1 . Mechanic 1 | . . . 1 . . Operator 1 | . . . . 1 . Watcher 1 | . . . . 1 . Swarmer 13 | . 3 . 7 3 . Grunt 14 | . . 2 3 4 5 Brawler 2 | . . 1 . . 1 Duelist 1 | . . . . 1 . Sentry 11 | . . 3 5 2 1 Specialist 4 | . . . 4 . . Hunter 2 | . . . 1 . 1 Programmer 2 | . . . . 2 . Best Kill Streak 8 | . 3 2 8 4 4 Combat Bots Only 6 | . 3 2 6 3 4 Max Kills in Single Turn 3 | . 1 1 3 2 2 Gunslinging 1 | . . . 1 1 . Exploded 3 | . . . 3 2 2 Melee . | . . . . . . Uniques/NPCs Destroyed . | . . . . . . Combat | -11 -10 -9 -8 -7 -7 -------- Run | Yrd Mat Mat Mat Fac Sto Hostile Shots Fired 489 | . 19 40 103 108 219 Missed 157 | . 6 8 35 34 74 Hits 332 | . 13 32 68 74 145 Melee 5 | . . 3 . . 2 Projectile 327 | . 13 29 68 74 143 AOE 1 | . . . . . 1 Critical Strikes 7 | . 1 1 2 2 1 Actively Blocked 1 | . . . 1 . . Part Disruptions 1 | . . . . 1 . Actively Blocked 1 | . . . . 1 . Damage Taken 4258 | . 168 478 1131 934 1547 Core 1186 | . 70 126 286 159 545 Absorbed by Shields . | . . . . . . Redirected to Shielding 151 | . . . 63 88 . Core Remaining (%) 72 | 100 72 68 48 . . Volleys Fired 121 | . 8 22 43 41 7 Largest 2 | . 2 2 2 2 2 Hottest 145 | . 40 110 128 145 90 Shots Fired 231 | . 16 41 83 78 13 Gun 167 | . 16 41 61 49 . Cannon 43 | . . . 14 27 2 Launcher 21 | . . . 8 2 11 Special . | . . . . . . Kinetic 66 | . 16 12 5 31 2 Thermal 81 | . . 5 41 35 . Explosive 21 | . . . 8 2 11 Electromagnetic 63 | . . 24 29 10 . Robot Hit Streak 11 | . 2 7 7 11 6 Robot Miss Streak 7 | . 4 5 7 7 5 Penetration Max . | . . . . . . Secondary Targets 5 | . 2 1 1 1 . Max Gunslinging Chain 1 | . 1 1 1 1 . Shots Hit Robots 171 | . 7 33 66 57 8 Core Hits 190 | . 4 19 70 52 45 Critical Kills . | . . . . . . Critical Parts Destroyed . | . . . . . . Critical Strikes 2 | . . . . 2 . Blast 2 | . . . . 2 . Melee Attacks . | . . . . . . Impact . | . . . . . . Slashing . | . . . . . . Piercing . | . . . . . . Sneak Attacks . | . . . . . . Combat Hostiles . | . . . . . . Follow-up Attacks . | . . . . . . Damage Inflicted 4442 | . 81 429 1464 1153 1315 Guns 1782 | . 81 377 687 637 . Cannons 556 | . . . 196 360 . Explosions 2007 | . . 52 581 156 1218 Melee . | . . . . . . Ramming 97 | . . . . . 97 Kinetic 567 | . 81 87 25 374 . Thermal 1211 | . . 92 562 557 . Explosive 1896 | . . . 522 156 1218 Electromagnetic 671 | . . 250 355 66 . Impact . | . . . . . . Slashing . | . . . . . . Piercing . | . . . . . . Highest Corruption 12 | . 8 12 . 3 7 Average Corruption 5 | . 3 11 . 2 5 Corruption Purged . | . . . . . . Corruption Blocked . | . . . . . . Effects 43 | . . 16 . 17 10 Message Errors 7 | . . 4 . 2 1 Matter Fused 11 | . . 1 . 5 5 Heat Flow Errors 3 | . . 3 . . . Energy Discharges 4 | . . 2 . 1 1 Parts Rejected 2 | . . 1 . 1 . Parts Fused 1 | . . . . . 1 Data Loss (minor) 6 | . . 1 . 4 1 Data Loss (major) 2 | . . . . 2 . Misfires 5 | . . 3 . 2 . Alerts 1 | . . . . . 1 Weapon Failures 1 | . . 1 . . . Overload Shots . | . . . . . . Overflow Damage 90 | . . 1 77 6 6 Projectiles 6 | . . . . 6 . Explosions 84 | . . 1 77 . 6 Melee . | . . . . . . Knockbacks 10 | . . . . 9 1 Impact 1 | . . . . . 1 Kinetic 8 | . . . . 8 . Secondary 1 | . . . . 1 . Self-Inflicted Damage 464 | . . 37 207 . 220 Shots 15 | . . 1 6 . 8 Rammed 13 | . . . . . 13 Targets Rammed 13 | . . . . . 13 Kicked . | . . . . . . Crushed . | . . . . . . Highest Temperature 444 | . . 315 444 135 146 Average Temperature 68 | . . 131 61 34 54 Received Heat Transfer 834 | . 21 177 171 186 279 Effects 3 | . . . 3 . . Interference 3 | . . . 3 . . Siege Activations . | . . . . . . Martial Activations . | . . . . . . Shielding Activations . | . . . . . . Robots Disrupted . | . . . . . . Combat Hostiles . | . . . . . . Robots Corrupted . | . . . . . . Combat Hostiles . | . . . . . . Parts Fried . | . . . . . . Impact Corruptions . | . . . . . . Robots Melted . | . . . . . . Combat Hostiles . | . . . . . . Parts Melted 3 | . . . . 3 . Heat Transferred 1735 | . . 100 675 960 . Parts Sabotaged . | . . . . . . Parts Stolen . | . . . . . . Parts Stripped . | . . . . . . Power Chain Reactions 1 | . . 1 . . . Alert | -11 -10 -9 -8 -7 -7 ------- Run | Yrd Mat Mat Mat Fac Sto Maximum Alert Level 1 | . . . 1 . 1 Low Security (%) 96 | 100 100 100 98 100 60 Level 1 3 | . . . 1 . 39 Level 2 . | . . . . . . Level 3 . | . . . . . . Level 4 . | . . . . . . Level 5 . | . . . . . . High Security . | . . . . . . Max Security . | . . . . . . Peak Influence 301 | . 75 60 301 127 274 Initial 127 | . . . 5 127 37 Average 35 | . 14 14 24 32 165 Influence Increases 1771 | . 130 195 645 407 394 Destroy 0b10 Robot/C 980 | . 60 120 400 240 160 Destroy 0b10 Robot/NC 40 | . . . 10 25 5 Destroy Leader 234 | . 10 40 100 52 32 Disable Machine 120 | . . 15 45 30 30 Destroy Structure 262 | . . 5 75 15 167 Lose Combat Pursuer 135 | . 60 15 15 45 . Influence Decreases 1650 | . 130 180 379 605 356 Entered New Map 210 | . . . 10 154 46 Time Decay 1161 | . 130 160 284 397 190 Lost Part 279 | . . 20 85 54 120 Squads Dispatched 11 | . . 2 6 3 . Investigation 1 | . . . . 1 . Extermination 2 | . . . . 2 . Reinforcement 7 | . . 2 5 . . Assault . | . . . . . . Garrison 1 | . . . 1 . . Intercept . | . . . . . . Searches Triggered . | . . . . . . Construction Impeded . | . . . . . . Haulers Reinforced . | . . . . . . Active Scanning Responses . | . . . . . . Cargo Convoy Interrupts . | . . . . . . Stealth | -11 -10 -9 -8 -7 -7 --------- Run | Yrd Mat Mat Mat Fac Sto Distress Signals 8 | . 1 4 2 1 . Communications Jammed . | . . . . . . Distress Signals . | . . . . . . Times Spotted 89 | . 12 13 34 18 12 Peak Tracking Total 5 | . 4 3 5 3 4 Tactical Retreats 7 | . 2 1 1 3 . Traps | -11 -10 -9 -8 -7 -7 ------- Run | Yrd Mat Mat Mat Fac Sto Traps Triggered 8 | . 6 . 2 . . Indirectly . | . . . . . . Trap Hack Attempts . | . . . . . . Triggered . | . . . . . . Disarmed . | . . . . . . Reprogrammed . | . . . . . . Reused . | . . . . . . Traps Extracted . | . . . . . . Installed . | . . . . . . Triggered . | . . . . . . Machines | -11 -10 -9 -8 -7 -7 ---------- Run | Yrd Mat Mat Mat Fac Sto Machines Disabled 8 | . . 1 3 2 2 Max in Single Turn 3 | . . 1 3 1 1 Machines Repaired . | . . . . . . Machines Dismantled . | . . . . . . Machines Sabotaged . | . . . . . . Overloaded Fab Kills . | . . . . . . Hacking | -11 -10 -9 -8 -7 -7 --------- Run | Yrd Mat Mat Mat Fac Sto Machines Accessed 2 | . . . . 1 1 Terminals 2 | . . . . 1 1 Fabricators . | . . . . . . Repair Stations . | . . . . . . Recycling Units . | . . . . . . Scanalyzers . | . . . . . . Garrison Access . | . . . . . . Total Hacks 5 | . . . . 4 1 Successful 1 | . . . . . 1 Failed 4 | . . . . 4 . Catastrophic . | . . . . . . Database Lockouts . | . . . . . . Manual . | . . . . . . Terminals 5 | . . . . 4 1 Fabricators . | . . . . . . Repair Stations . | . . . . . . Recycling Units . | . . . . . . Scanalyzers . | . . . . . . Garrison Access . | . . . . . . Terminal Hacks 1 | . . . . . 1 Open Door 1 | . . . . . 1 Fabricator Hacks . | . . . . . . Repair Station Hacks . | . . . . . . Recycling Unit Hacks . | . . . . . . Scanalyzer . | . . . . . . Garrison Access Hacks . | . . . . . . Unauthorized Hacks . | . . . . . . Terminals . | . . . . . . Fabricators . | . . . . . . Repair Stations . | . . . . . . Recycling Units . | . . . . . . Scanalyzers . | . . . . . . Garrison Access . | . . . . . . Data Cores Recovered 1 | . . . . 1 . Used . | . . . . . . Hacking Detections 1 | . . . . 1 . Full Trace Events 1 | . . . . 1 . Feedback Events . | . . . . . . Feedback Blocked . | . . . . . . Robot Schematics Acquired . | . . . . . . Robots Built . | . . . . . . Authchips . | . . . . . . Time . | . . . . . . Total Robot Build Rating . | . . . . . . Part Schematics Acquired . | . . . . . . Parts Built . | . . . . . . Authchips . | . . . . . . Time . | . . . . . . Total Part Build Rating . | . . . . . . Parts Repaired . | . . . . . . Time . | . . . . . . Parts Recycled . | . . . . . . Recycled Matter . | . . . . . . Retrieved Matter . | . . . . . . Retrieved Components . | . . . . . . Parts Scanalyzed . | . . . . . . Part Schematics Acquired . | . . . . . . Parts Damaged . | . . . . . . Bothacking | -11 -10 -9 -8 -7 -7 ------------ Run | Yrd Mat Mat Mat Fac Sto Used RIF Installer . | . . . . . . Robots Hacked . | . . . . . . Non-combat . | . . . . . . Combat . | . . . . . . Robot Hacks Applied . | . . . . . . Relay Couplers Released . | . . . . . . Fabnet Peak Effective % . | . . . . . . Robots Rewired . | . . . . . . Allies Hacked . | . . . . . . Hacks Repelled . | . . . . . . Allies | -11 -10 -9 -8 -7 -7 -------- Run | Yrd Mat Mat Mat Fac Sto Total Allies . | . . . . . . Largest Group . | . . . . . . Highest-Rated Group . | . . . . . . Highest-Rated Ally . | . . . . . . Total Orders . | . . . . . . Ally Attacks . | . . . . . . Total Damage . | . . . . . . Kills . | . . . . . . Allies Corrupted . | . . . . . . Allies Melted . | . . . . . . Intel | -11 -10 -9 -8 -7 -7 ------- Run | Yrd Mat Mat Mat Fac Sto Active Infowar (turns) 4006 | . . 377 1853 1389 387 Optics 3752 | . . 123 1853 1389 387 Terrain 1393 | . . 254 1139 . . Seismic 167 | . . 167 . . . Robot Analysis Total . | . . . . . . Derelict Logs Recovered . | . . . . . . Drone Launches . | . . . . . . Drone Recoveries . | . . . . . . Exploration | -11 -10 -9 -8 -7 -7 ------------- Run | Yrd Mat Mat Mat Fac Sto Turns Passed 4772 | 58 571 514 1853 1389 387 Spaces Moved 3106 | 51 472 333 1295 747 208 Core 13 | 7 . . . 3 3 Treads . | . . . . . . Legs . | . . . . . . Wheels 3093 | 44 472 333 1295 744 205 Hover . | . . . . . . Flight . | . . . . . . Fastest Speed 50 | 50 90 105 110 125 125 Average Speed 123 | 93 103 108 115 151 145 Slowest Speed 1300 | 100 105 140 155 1300 950 Overloaded Moves . | . . . . . . Propulsion Burnouts . | . . . . . . Robots Hopped . | . . . . . . Potential Cave-ins . | . . . . . . Cave-ins Triggered . | . . . . . . Exploration Rate (%) 37 | 4 72 23 60 18 49 Regions Visited 5 Branch Regions 1 Pre-discovered Areas . | . . . . . . Known Exits Taken 1 | . 1 . . . . Unknown Exits Taken 4 | 1 . 1 1 1 . Scrap Searched . | . . . . . . Spaces Dug . | . . . . . . Terrain Destroyed 297 | . . 5 80 13 199 Melee . | . . . . . . Projectile 8 | . . . . 6 2 AOE 289 | . . 5 80 7 197 Terrain Rammed . | . . . . . . Walls Destroyed . | . . . . . . Machines Disabled . | . . . . . . Actions | -11 -10 -9 -8 -7 -7 --------- Run | Yrd Mat Mat Mat Fac Sto Total 3820 | 61 541 445 1575 929 269 Wait 400 | . 33 68 190 91 18 Move 3101 | 50 471 332 1294 746 208 Hop . | . . . . . . Pick Up 80 | 8 20 9 19 18 6 Fast Attach 8 | . . 1 6 1 . Attach 42 | 3 4 8 13 11 3 Detach . | . . . . . . Swap 24 | . 3 4 1 10 6 Drop 31 | . 2 1 9 11 8 Fire 121 | . 8 22 43 41 7 Melee . | . . . . . . Ram 13 | . . . . . 13 Kick . | . . . . . . Crush . | . . . . . . Escape Stasis . | . . . . . . Rewire . | . . . . . . Trap . | . . . . . . Miscellaneous . | . . . . . . Route ------- -11/Scrapyard -10/Materials (discovered 3 exits: *Mat x2 / *Min) -9/Materials -8/Materials -7/Factory -7/Storage History --------- Turn | Location | Event 26 | -11/Scrapyard | Discovered new exit (range 14) 59 | -11/Scrapyard | Entered Materials 299 | -10/Materials | Discovered new exit (range 13) 304 | -10/Materials | Build established: Mutant 390 | -10/Materials | Identified exit to Mines 510 | -10/Materials | Discovered new exit (range 16) 615 | -10/Materials | Discovered new exit (range 15) 629 | -10/Materials | Identified exit to Materials 630 | -10/Materials | Entered another Materials area 630 | -9/Materials | Evolved 2 slots: Utility x2 804 | -9/Materials | System corruption reached 10% 841 | -9/Materials | Lost 4 parts (1p1n1u1w) 978 | -9/Materials | Discovered new exit (range 10) 1144 | -9/Materials | Entered another Materials area 1144 | -8/Materials | Evolved 2 slots: Utility x2 1581 | -8/Materials | Build established: Scavenger-Mutant 1710 | -8/Materials | Lost 6 parts (1n2u3w) 1969 | -8/Materials | Build established: Mutant 2891 | -8/Materials | Lost 3 parts (1n1u1w) 2986 | -8/Materials | Garrison activated, responded to threat 2994 | -8/Materials | Discovered new exit (range 3) 2997 | -8/Materials | Core integrity fell below 50% 2997 | -8/Materials | Entered Factory 2997 | -7/Factory | Evolved 2 slots: Power x1, Utility x1 3537 | -7/Factory | Lost 3 parts (2n1u) 3981 | -7/Factory | Lost 3 parts (1n1u1w) 4380 | -7/Factory | Discovered new exit (range 4) 4386 | -7/Factory | Entered Storage 4424 | -7/Storage | Found Prototype Launcher 4425 | -7/Storage | Identified Rocket Array 4428 | -7/Storage | Found Rocket Array 4430 | -7/Storage | Found Rocket Array 4432 | -7/Storage | Found Rocket Array 4465 | -7/Storage | Found Rocket Array 4469 | -7/Storage | Found Rocket Array 4477 | -7/Storage | Found Rocket Array 4758 | -7/Storage | Core integrity fell below 50% 4768 | -7/Storage | Core integrity fell below 20% 4773 | -7/Storage | Destroyed by Y-54 Guardian with Flak Gun Last Messages --------------- 04758_ U-05 Engineer builds a Wall. 04759_ R-06 Scavenger collects Carbon-fiber Leg. 04760_ K-01 Serf collects debris. 04761_ Enh. Nuclear Core destroyed. 04762_ The unstable cave ceiling collapses. 04763_ U-05 Engineer lays Concrete. 04764_ R-06 Scavenger destroyed. 04764_ U-05 Engineer builds a Door. 04764_ K-01 Serf collects debris. 04765_ Rocket Array destroyed. 04766_ R-06 Scavenger collects Lgt. Ion Engine. 04767_ K-01 Serf collects debris. 04768_ Dropped Hcp. Storage Unit. 04769_ R-06 Scavenger collects Imp. Signal Interpreter. 04769_ K-01 Serf collects debris. 04769_ U-05 Engineer lays Concrete. 04770_ U-05 Engineer builds a Wall. 04771_ K-01 Serf collects debris. 04772_ R-06 Scavenger collects Rocket Array. Map ----- +----------------------------------------------------+ | ?????????????????????????????????? """??# "" "" | | ???????????????????????????????????? """??# | | ????????????????????????????????????? ??# | | ????????????????????????????????????###+### | | ????????????????????????????????????# ####"### | | ????????????????????????????????????# "" | | ????????????????????????????????????# T | | ????????????????????????????????????# | | ????????????????????????????????????# ####+### | | ????????????????????????????????????## ## | | ????????????????????????????########## ## | | ????????????????????????????# # ## | | ????????????????????????????# = # ## | | ????????????????????????????# ! # ## | | ????????????????????????????# [ / ## | | ????????????????????????????# # ## | | ????????????????????????????#! # ## | | ?????????????????????######?# # ## | | ???????????????####### #### ####### + | | ??????????????# ######+#### | | ??????????????# ########## | | ??????????????# #####m! # k # """ "" | | ??????????????????## !!Y! # """ "" | | ??????????????????# ]!Y! r[ # """ "" | | ??????????????????# !!* % # | | ??????????????????# ] @%= k # | | ??????????????????# =]! # | | ??????????????????# Y # | | ??????????????????## ## k # #### +##+## | | ?????????????????? ] ## k | | ????????????????a + ? | | ??????????????""" """ ##### ?#### u | | ??????????????""" """ ????? ? #/##+## # ### | | ??????????????""" """ ??????# # | | ??????????????? ??????? """" ####T # | | ???????????????""??"" ??????????????" ????## ## | | ???????????????????"" ??????????????????????# # | | ????????????????????##??????????????????????# ## | | ????????????????????????????????????????????# # | | ????????????????????????????????????????????# ]]# | | ????????????????????????????????????????????###### | | ?????????????????????????????????????????????????# | | ?????????????????????????????????????????????????? | | ?????????????????????????????????????????????????? | | ?????????????????????????????????????????????????? | | | | | | | | | | | +----------------------------------------------------+ Best States ------------- Heat Dissipation 62 Energy Generation 26 Energy Capacity 440 Matter Stores 300 Matter Capacity 300 Sight Range 18 Terrain Scan Range 14 Terrain Scan Density 10 Armor Coverage 450 Power Shielding 66 Propulsion Shielding 33 Evasion (%) 42 Matter Filtering 30 Item Schematics ----------------- None Robot Schematics ------------------ None Fabricated ------------ Nothing Repaired ---------- Nothing Alien Tech Used ----------------- None Achievements -------------- None Challenges ------------ None Game ------ Seed PlasmaBiometalFrame Manual? 0 Play Time 00:38:12 Cumulative 40.6 hours Start 2025.07.21 @ 18:01:32 End 2025.07.21 @ 18:45:55 Sessions 1 Manual Loads 0 Difficulty Rogue Special Mode None Game No. 82 Rogue 82 Adventurer 0 Explorer 0 Win Type - Total 0 Types 0/0/0/0/0/0/0/0/0/0 Lore% 8 Gallery% 28 Achievement% 24 Wizard Run 0 Options --------- Layout 1 ASCII 0 Keyboard 0 Movement Mouse Keybinds 0 Fullscreen 2 Font 32/SmallcapsGlow Map View 50x35 Zoom Use 0% Tactical HUD 1 Map Filters NONE Filters NONE Steam 1 RUN: 8bfd7572-70c5-4da5-bf39-2e48e48cb8f6